{"text_format":"1","workbook":"xlsx","n_sheets":5,"sheets":["Blad1","Häst_stall","Lantbrukare","Transportör","Beräkningsflik"],"not_rendered":{"charts":0,"images":0,"macros":1,"external_links":1,"defined_names":0,"comments":0,"pivot_tables":0},"unopened":[],"bounds":{"document_bytes":16777216,"sheet_cells":100000,"rows_first":2000,"rows_last":500,"rows_between":2000,"halvings":0,"cell_chars":16384,"cell_head_chars":4096},"cells_cut":0,"cells_raw":0,"read":"whole","date_system":"1900"}

{"sheet":"Blad1","index":0,"n_rows":0,"n_cols":0,"rows_kept":0,"cut":false,"hidden":false,"merged":[]}

{"sheet":"Häst_stall","index":1,"n_rows":33,"n_cols":11,"rows_kept":33,"cut":false,"hidden":false,"merged":[]}
[]
[null,"Information om antal hästar/ponnyer och stallet"]
[]
[null,"Fyll i nedan uppgifter:"]
[null,"Namn:"]
[null,"Adress:"]
[null,"Tel.nr:"]
[null,"Org.nr:"]
[null,"Hämtningsadress:"]
[null,"Fastighetsnr:"]
[null,"Kommun:"]
[]
[]
[null,"Hur många hästar genererar gödsel under ett år?",null,null,null,null,null,null,null,0,"st"]
[null,"Hur  många av dessa hästar är av typen ponny?",null,null,null,null,null,null,null,0,"st "]
[null,"Ange den procentuella fördelningen av strö som har använts",null,null,null,null,null,null,null,0,"% spån eller träpellets"]
[null,null,null,null,null,null,null,null,null,null,"% halm eller halmpellets"]
[null,null,null,null,null,null,null,null,null,0,"% torv"]
[null,null,null,null,null,null,null,null,"Summa",100,"(ska bli 100) "]
[null,"Gödselförvaring (kryssa i något av följande alternativ):"]
[null,"Har du gödselplatta?"]
[null,"Har du gödselcontainer/flak?"]
[null,"Behöver du hyra en gödselcontainer?",null,null,null,null,null,"  Du kommer bli kontaktad för prisförslag."]
[]
[]
[null,"Kostnader för gödselförvaring och transport",null,null,null,null,null,null,"Schablonvärde"]
[null,"Vad är den årliga kostnaden för gödselplattan/container/flak (tex hyra)?",null,null,null,null,null,null,null,null,"kr"]
[null,"Antal gånger som gödselhämtning ska ske/år?",null,null,null,null,null,null,null,null,"st"]
[null,"Vad är kostnaden för hämtning av hästgödsel/gång? *",null,null,null,null,null,null,0,null,"kr *"]
[null,"Vad är kilometerkostnaden för transporten av hästgödsel (inkl retur)? *",null,null,null,null,null,null,140,140,"kr/km *"]
[null,"Hur lång transportsträcka är det från stall till mottagare?",null,null,null,null,null,null,null,null,"km"]
[]
[null,null,"*Fylls i om uppgift, i annat fall används schablonvärde för beräkning."]

{"sheet":"Lantbrukare","index":2,"n_rows":43,"n_cols":11,"rows_kept":43,"cut":false,"hidden":false,"merged":[]}
[]
[null," Värdet av hästgödseln"]
[]
[null,"Fyll i nedan uppgifter:"]
[null,"Namn:"]
[null,"Adress:"]
[null,"Tel.nr:"]
[null,"Org.nr:"]
[null,"Leveransadresser:"]
[null,"Fastighetsnr:"]
[null,"Kommun:"]
[]
[]
[]
[null,"Kostnader för lagring/spridning hos lantbrukaren"]
[]
[null,"Schablonvärden",null,null,null,null,"Om kostnaderna skiljer mot schablonvärden, fyll i dessa här:"]
[null,"Markpackning",null,{"$f":"Beräkningsflik!I21","v":10},"kr/ton",null,"Markpackning",null,null,"kr/ton"]
[null,"Spridningskostnad",null,{"$f":"Beräkningsflik!I22","v":65},"kr/ton",null,"Spridningskostnad",null,null,"kr/ton"]
[null,"Lagring och vägslitage ",null,{"$f":"Beräkningsflik!I23","v":15},"kr/ton",null,"Lagring och vägslitage ",null,null,"kr/ton"]
[]
[]
[null,"Marknadspriser"]
[null,null,null,null,null,null,null,null,null,"Gödselns värde"]
[null,"N-NH4",null,{"$f":"Beräkningsflik!D21","v":10.5},"kr/kg",null,null,null,"N-NH4",28.5,"kr"]
[null,"P",null,{"$f":"Beräkningsflik!D22","v":22},"kr/kg",null,null,null,"P",300,"kr"]
[null,"K",null,{"$f":"Beräkningsflik!D23","v":9.5},"kr/kg",null,null,null,"K",720,"kr"]
[null,null,null,null,null,null,null,null,"NPK-värde ",1048.5,"kr"]
[null,null,null,null,null,null,null,null,"NPK-värde/ton",69.900000000000006,"kr/ton"]
[null,"Marknadspriser uppdaterade den:"]
[null,null,null,"2020-01-09",null,null,"NPK inkl packn spridn och slitage",null,null,-9.9999999999994316E-2,"kr/ton"]
[]
[]
[]
[null,"Areal som behövs för att sprida gödseln"]
[]
[null,"Enligt SJVFS 2004:62 (2013:40) så är: 8 § Stallgödsel eller andra organiska gödselmedel får under en "]
[null,"femårsperiod inte tillföras i större mängd än vad som motsvarar 22 kg totalfosfor per hektar spridningsareal "]
[null,"och år, räknat som ett genomsnitt för företagets hela spridningsareal per år under perioden.   "]
[null,"Femårsperioden utgörs av en löpande sammanhängande period om fem kalenderår."]
[]
[null,"Maximal mängd kg P / ha, år",null,null,null,null,null,null,null,22,"kgP/ha,år"]
[null,"Hur många år skall givan vara till (1-5 år)",null,null,null,null,null,null,null,1,"år "]

{"sheet":"Transportör","index":3,"n_rows":21,"n_cols":11,"rows_kept":21,"cut":false,"hidden":false,"merged":[]}
[null,"Fyll i nedan uppgifter:"]
[null,"Namn:"]
[null,"Adress:"]
[null,"Tel.nr:"]
[null,"Org.nr:"]
[null,"Leveransadresser:"]
[null,"Fastighetsnr:"]
[null,"Kommun:"]
[]
[]
[]
[null,"Kostnader för gödselförvaring och transport",null,null,null,null,null,null,"Schablonvärde"]
[null,"Kostnad för uthyrning av container/flak per år?",null,null,null,null,null,null,null,1500,"kr/år"]
[null,"Antal gånger som gödselhämtning ska ske/år? 1",null,null,null,null,null,null,3,12,"st"]
[null,"Vad är kostnaden för hämtning av hästgödsel/gång? 2",null,null,null,null,null,null,1350,1000,"kr *"]
[null,"Vad är kilometerkostnaden för transporten av hästgödsel (inkl retur)? 2",null,null,null,null,null,null,140,140,"kr/km *"]
[null,"Hur lång transportsträcka är det från stall till mottagare? 1",null,null,null,null,null,null,0,15,"km"]
[null,null,null,null,null,null,null,null,"Totalkostnad",{"$f":"J13+(IF(J14>0,J14,I14)*IF(J15>0,J15,I15))+(IF(J17>0,J17,I17)*IF(J16>0,J16,I16))","v":15600},"kr/år"]
[]
[null,null,"1Fylls i om uppgift, i annat fall används schablonvärde för beräkning."]
[null,null,"2 Fyll i om uppgifter från stallägare behöver korrigeras."]

{"sheet":"Beräkningsflik","index":4,"n_rows":65,"n_cols":11,"rows_kept":65,"cut":false,"hidden":false,"merged":[]}
[]
[null,"Beräkning av gödselns värde"]
[]
[null,"Beräknad mängd hästgödsel inkl strömedel som aktuell besättning genererar",null,null,null,null,null,null,null,{"$f":"J9*Häst_stall!J14","v":0},"ton/år"]
[null,"Beräknad mängd näring som denna gödsel innehåller baserat på ",null,null,null,null,null,null,"N-NH4",{"$f":"J4*(((Häst_stall!J16/100)*F13)+((Häst_stall!J17/100)*F14)+(Häst_stall!J18/100)*F15)","v":0},"kg N-NH4"]
[null,null,null,null,null,null,null,null,"P",{"$f":"J4*(((Häst_stall!J16/100)*G13)+(Häst_stall!J17/100)*G14)+(Häst_stall!J18/100)*G15","v":0},"kg P"]
[null,null,null,null,null,null,null,null,"K",{"$f":"J4*(((Häst_stall!J16/100)*H13)+((Häst_stall!J17/100)*H14)+((Häst_stall!J18/100)*H15))","v":0},"kg K"]
[null,"Indata till ovan"]
[null,"Antagen mängd hästgödsel (träck, urin och strö) per vuxen häst per år",null,null,null,null,null,null,null,6,"ton"]
[null,"Antagen mängd hästgödsel (träck, urin och strö) per ponny per år",null,null,null,null,null,null,null,3,"ton"]
[]
[null,"Näring för hästgödsel inklusive strö: ",null,null,null,"N-NH4","P","K"]
[null,null,null,null,"Träbaserat strömedel (spån, träpellets)",0.2,0.8,4,"kg/ton"]
[null,null,null,null,"Halmbaserat strömedel (halm, halmpellets)",0.2,1,6,"kg/ton"]
[null,null,null,null,"Torv",1,0.6,4,"kg/ton"]
[]
[]
[]
[null,"Indata marknadspriser",null,null,null,null,"Kostnader i samband med spridning av gödsel"]
[null,null,null,"Schablonvärden"]
[null,null,"N-NH4",10.5,"kr/kg",null,"Markpackning",null,10,"kr/ton"]
[null,null,"P",22,"kr/kg",null,"Spridningskostnad",null,65,"kr/ton"]
[null,null,"K",9.5,"kr/kg",null,"Lagring och vägslitage ",null,15,"kr/ton"]
[null,"Marknadspriser uppdaterade den:",null,null,null,null,"Totalkostnad",null,{"$f":"SUM(I21:I23)","v":90},"kr/ton"]
[null,null,null,"2020-01-29"]
[null,"Gödselns värde",null,null,null,null,"Gödselns värde "]
[null,null,"N-NH4",{"$f":"J5*D21","v":0},"kr",null,"(inklusive markpackning, spridning, lagring och slitage)"]
[null,null,"P",{"$f":"J6*D22","v":0},"kr"]
[null,null,"K",{"$f":"J7*D23","v":0},"kr",null,null,"NPK-värde/ton",{"$f":"D31-(I21+I22+I23)","v":{"$error":"#DIV/0!"}},"kr/ton"]
[null,null,"NPK-värde ",{"$f":"SUM(D27:D29)","v":0},"kr"]
[null,null,"NPK-värde/ton",{"$f":"D30/J4","v":{"$error":"#DIV/0!"}},"kr/ton"]
[]
[]
[]
[null,"Kostnader för häst/stallägare för hämtning och transport av gödsel"]
[]
[null,"Transportkostnader totala"]
[null,"Kostnader för tömningar av container/flak/gödselplatta: ",null,null,null,null,null,null,null,{"$f":"Häst_stall!J28*IF(Häst_stall!J29>0,Häst_stall!J29,Häst_stall!I29)","v":0},"kr"]
[null,"Kostnader för transporterna fram och tillbaka",null,null,null,null,null,null,null,{"$f":"Transportör!J17*IF(Transportör!J15>0,Transportör!J15,Transportör!I15)","v":15000},"kr"]
[null,"Kostnader för hyra av container/flak ",null,null,null,null,null,null,null,{"$f":"Häst_stall!J27","v":0},"kr "]
[null,"Summering kostnader: ",null,null,null,null,null,null,null,{"$f":"SUM(J38:J40)","v":15000},"kr"]
[]
[null,"Kostnader per ton gödsel"]
[null,"Transportkostnader per ton gödsel",null,null,null,null,null,null,null,{"$f":"J41/J4","v":{"$error":"#DIV/0!"}},"kr/ton"]
[null,"Ersättning till lantbrukare ",null,null,null,null,null,null,null,{"$f":"Lantbrukare!J31","v":-9.9999999999994316E-2},"kr/ton"]
[null,"Total kostnad per ton",null,null,null,null,null,null,null,{"$f":"J44+J45","v":{"$error":"#DIV/0!"}},"kr/ton"]
[]
[null,"Kostnader för hela gödselmängden",null,null,{"$f":"Beräkningsflik!J4","v":0},"ton/år"]
[null,"Kostnader transport av gödsel",null,null,null,null,null,null,null,{"$f":"J41","v":15000},"kr/år"]
[null,"Ersättning till lantbrukare",null,null,null,null,null,null,null,{"$f":"-J4*I29","v":{"$error":"#DIV/0!"}},"kr/år"]
[null,"Total gödselkostnad för häst/stallägaren",null,null,null,null,null,null,null,{"$f":"SUM(J49:J50)","v":{"$error":"#DIV/0!"}},"kr/år"]
[]
[]
[null,"Areal som behövs för att sprida gödseln"]
[]
[null,"Enligt SJVFS 2004:62 (2013:40) så är: 8 § Stallgödsel eller andra organiska gödselmedel får under en "]
[null,"femårsperiod inte tillföras i större mängd än vad som motsvarar 22 kg totalfosfor per hektar spridningsareal "]
[null,"och år, räknat som ett genomsnitt för företagets hela spridningsareal per år under perioden.   "]
[null,"Femårsperioden utgörs av en löpande sammanhängande period om fem kalenderår."]
[]
[null,"Maximal mängd kg P/ha, år",null,null,null,null,null,null,null,22,"kgP/ha,år"]
[null,"Hur många år skall givan vara till (1-5 år)",null,null,null,null,null,null,null,{"$f":"Lantbrukare!J43","v":1},"år "]
[]
[null,"Areal som behövs för att sprida hela mängden hästgödsel",null,null,null,null,null,null,null,{"$f":"J6/(J62*J61)","v":0},"ha"]
[null,"Giva",null,null,null,null,null,null,null,{"$f":"J6/J64","v":{"$error":"#DIV/0!"}},"ton/ha"]